bitfinex-derivatives/quotes_BNBF0:USTF0_20250529
["timestamp","ask_amount","ask_price","bid_price","bid_amount"]
[1748538337031,0.29461589,678.85,677.89,0.46842947]
[1748538337224,0.29461589,678.85,677.88,0.46842947]
[1748538337429,0.29461589,678.85,677.86,0.46842947]
[1748538338333,0.29461589,678.85,677.73,0.46842947]
[1748538339330,0.29461589,678.85,677.42,0.371]
[1748538339331,0.29461589,678.85,677.62,0.46842947]
[1748538339535,0.29461589,678.85,677.61,0.46842947]
[1748538339726,0.29461589,678.85,677.62,0.46842947]
[1748538340132,0.29461589,678.85,677.61,0.46842947]
[1748538341826,0.29461589,678.85,677.64,0.46842947]
[1748538342028,0.29461589,678.85,677.65,0.46842947]
[1748538342532,0.29461589,678.85,677.64,0.46842947]
[1748538342833,0.29461589,678.85,677.66,0.46842947]
[1748538343133,0.29461589,678.85,677.65,0.46842947]
[1748538343530,0.29461589,678.85,677.42,0.371]
[1748538343531,0.29461589,678.85,677.66,0.46842947]
[1748538344028,0.29461589,678.85,677.68,0.46842947]
[1748538344230,0.29461589,678.85,677.66,0.46842947]
[1748538345128,0.29461589,678.85,677.65,0.46842947]
[1748538345729,0.29461589,678.85,677.42,0.371]
[1748538345730,0.29461589,678.85,677.63,0.46842947]
[1748538345929,0.29461589,678.85,677.65,0.46842947]
[1748538347333,0.29461589,678.85,677.63,0.46842947]
[1748538347735,0.29461589,678.85,677.5,0.46842947]
[1748538348135,0.29461589,678.85,677.54,0.46842947]
[1748538349135,0.29461589,678.85,677.6,0.46842947]
[1748538350836,0.29461589,678.85,677.61,0.46842947]
[1748538351033,0.29461589,678.85,677.61,0.89042947]
[1748538352635,0.29461589,678.85,677.62,0.46842947]
[1748538353533,0.29461589,678.85,677.64,0.46842947]
[1748538353739,0.29461589,678.85,677.65,0.46842947]
[1748538354635,0.29461589,678.85,677.67,0.46842947]
[1748538354839,0.29461589,678.85,677.61,0.422]
[1748538354840,0.29461589,678.85,677.69,0.46842947]
[1748538355737,0.29461589,678.85,677.61,0.422]
[1748538355738,0.29461589,678.85,677.71,0.46842947]
[1748538356541,0.29461589,678.85,677.73,0.46842947]
[1748538356936,0.29461589,678.85,677.61,0.422]
[1748538356937,0.29461589,678.85,677.71,0.46842947]
[1748538357741,0.29461589,678.85,677.98,0.46842947]
[1748538358241,0.29461589,678.85,677.61,0.422]
[1748538358242,0.29461589,678.85,678.0,0.46842947]
[1748538358642,0.29461589,678.85,678.03,0.46842947]
[1748538359441,0.29461589,678.85,678.04,0.46842947]
[1748538359845,0.29461589,678.85,677.61,0.422]
[1748538359846,0.29461589,678.85,678.05,0.46842947]
[1748538360247,0.29461589,678.85,678.12,0.46842947]
[1748538360747,0.29461589,678.85,677.78,0.46842947]
[1748538360748,0.29461589,678.85,678.14,0.46842947]
[1748538360943,0.29461589,678.85,678.13,0.46842947]
[1748538361144,0.29461589,678.85,678.12,0.46842947]
[1748538362550,0.29461589,678.85,677.61,0.422]
[1748538362551,0.29461589,678.85,678.05,0.46842947]
[1748538362751,0.29461589,678.85,678.04,0.46842947]
[1748538363348,0.29461589,678.85,678.03,0.46842947]
[1748538363547,0.29461589,678.85,678.04,0.46842947]
[1748538364051,0.29461589,678.85,678.05,0.46842947]
[1748538364245,0.29461589,678.85,677.72,0.46842947]
[1748538364246,0.29461589,678.85,678.04,0.46842947]
[1748538364451,0.29461589,678.85,678.06,0.46842947]
[1748538364846,0.29461589,678.85,678.05,0.46842947]
[1748538365247,0.29461589,678.85,678.03,0.46842947]
[1748538365553,0.29461589,678.85,678.0,0.46842947]
[1748538366650,0.29461589,678.85,677.87,0.46842947]
[1748538367351,0.29461589,678.85,677.89,0.46842947]
[1748538367660,0.29461589,678.85,677.9,0.46842947]
[1748538368155,0.29461589,678.85,677.77,0.46842947]
[1748538368650,0.29461589,678.85,677.78,0.46842947]
[1748538369053,0.29461589,678.85,677.77,0.46842947]
[1748538369655,0.29461589,678.85,677.79,0.46842947]
[1748538370054,0.29461589,678.85,677.78,0.46842947]
[1748538370253,0.29461589,678.85,677.75,0.46842947]
[1748538370454,0.29461589,678.85,677.74,0.46842947]
[1748538370656,0.29461589,678.85,677.75,0.46842947]
[1748538371454,0.29461589,678.85,677.74,0.46842947]
[1748538372057,0.29461589,678.85,677.69,0.46842947]
[1748538372453,0.29461589,678.85,677.68,0.46842947]
[1748538372658,0.29461589,678.85,677.19,0.46842947]
[1748538372659,0.29461589,678.85,677.7,0.351]
[1748538381366,0.29461589,678.85,677.8,0.46842947]
[1748538381571,0.29461589,678.85,677.76,0.46842947]
[1748538381771,0.29461589,678.85,677.75,0.46842947]
[1748538382371,0.29461589,678.85,677.76,0.46842947]
[1748538382576,0.29461589,678.85,677.75,0.46842947]
[1748538383171,0.29461589,678.85,677.77,0.46842947]
[1748538383371,0.29461589,678.85,677.78,0.46842947]
[1748538383866,0.29461589,678.85,677.79,0.46842947]
[1748538384071,0.29461589,678.85,677.8,0.46842947]
[1748538386772,0.29461589,678.85,677.79,0.46842947]
[1748538386969,0.29461589,678.85,677.9,0.46842947]
[1748538387373,0.29461589,678.85,677.91,0.46842947]
[1748538387572,0.29461589,678.85,677.9,0.46842947]
[1748538390174,0.29461589,678.85,677.7,0.351]
[1748538390175,0.29461589,678.85,677.91,0.46842947]
[1748538390383,0.29461589,678.85,677.92,0.46842947]
[1748538390769,0.29461589,678.85,677.91,0.46842947]
[1748538391470,0.29461589,678.85,677.7,0.351]
[1748538391471,0.29461589,678.85,677.93,0.46842947]
[1748538391874,0.29461589,678.85,677.77,0.46842947]
[1748538393074,0.29461589,678.85,677.8,0.46842947]
[1748538393472,0.29461589,678.85,677.82,0.46842947]
[1748538393977,0.29461589,678.85,677.83,0.46842947]
[1748538394273,0.29461589,678.85,677.82,0.46842947]
[1748538394477,0.29461589,678.85,677.83,0.46842947]
[1748538394677,0.29461589,678.85,677.7,0.351]
[1748538394678,0.29461589,678.85,677.84,0.46842947]
[1748538395379,0.29461589,678.85,677.82,0.46842947]
[1748538395578,0.29461589,678.85,677.7,0.351]
[1748538395579,0.29461589,678.85,677.81,0.46842947]
[1748538395774,0.29461589,678.85,677.7,0.351]
[1748538398679,0.29461589,678.85,677.56,0.46842947]
[1748538399478,0.29461589,678.85,677.55,0.46842947]
[1748538399678,0.29461589,678.85,677.46,0.46842947]
[1748538400476,0.29461589,678.85,677.47,0.502]
[1748538402576,0.29461589,678.85,677.54,0.46842947]
[1748538403977,0.29461589,678.85,677.53,0.46842947]
[1748538404383,0.29461589,678.85,677.63,0.46842947]
[1748538404583,0.29461589,678.85,677.47,0.502]
[1748538404584,0.29461589,678.85,677.81,0.46842947]
[1748538404781,0.29461589,678.85,677.71,0.46842947]
[1748538404976,0.29461589,678.85,677.69,0.46842947]
[1748538405282,0.29461589,678.85,677.68,0.46842947]
[1748538405879,0.29461589,678.85,677.66,0.46842947]
[1748538406577,0.29461589,678.85,677.64,0.46842947]
[1748538408085,0.29461589,678.85,677.63,0.46842947]
[1748538408377,0.29461589,678.85,677.62,0.46842947]
[1748538409382,0.29461589,678.85,677.47,0.502]
[1748538409383,0.29461589,678.85,677.61,0.46842947]
[1748538410379,0.29461589,678.85,677.6,0.46842947]
[1748538410584,0.29461589,678.85,677.47,0.502]
[1748538410585,0.29461589,678.85,677.59,0.46842947]
[1748538411384,0.29461589,678.85,677.58,0.46842947]
[1748538412182,0.29461589,678.85,677.47,0.502]
[1748538412183,0.29461589,678.85,677.59,0.46842947]
[1748538412379,0.29461589,678.85,677.47,0.502]
[1748538412380,0.29461589,678.85,677.58,0.46842947]
[1748538412779,0.29461589,678.85,677.53,0.46842947]
[1748538412979,0.29461589,678.85,677.61,0.46842947]
[1748538413285,0.29461589,678.85,677.56,0.46842947]
[1748538413480,0.29461589,678.85,677.47,0.502]
[1748538413481,0.29461589,678.85,677.55,0.46842947]
[1748538413887,0.29461589,678.85,677.53,0.46842947]
[1748538414082,0.29461589,678.85,677.47,0.502]
[1748538414083,0.29461589,678.85,677.52,0.46842947]
[1748538414385,0.29461589,678.85,677.49,0.46842947]
[1748538414585,0.29461589,678.85,677.51,0.46842947]
[1748538414785,0.29461589,678.85,677.53,0.46842947]
[1748538414982,0.29461589,678.85,677.47,0.502]
[1748538414983,0.29461589,678.85,677.51,0.46842947]
[1748538415181,0.29461589,678.85,677.47,0.502]
[1748538432500,0.29461589,678.85,677.35,0.29526832]
[1748538434199,0.29461589,678.85,677.36,0.312]
[1748538451211,0.29461589,678.85,677.42,0.46842947]
[1748538452010,0.29461589,678.85,677.52,0.46842947]
[1748538453211,0.29461589,678.85,677.53,0.46842947]
[1748538453614,0.29461589,678.85,677.54,0.46842947]
[1748538453817,0.29461589,678.85,677.36,0.312]
[1748538453818,0.29461589,678.85,677.55,0.46842947]
[1748538454517,0.29461589,678.85,677.56,0.46842947]
[1748538454711,0.29461589,678.85,677.57,0.46842947]
[1748538456715,0.29461589,678.85,677.53,0.46842947]
[1748538457314,0.29461589,678.85,677.54,0.46842947]
[1748538458013,0.29461589,678.85,677.55,0.358]
[1748538458215,0.29461589,678.85,677.55,0.82642947]
[1748538458918,0.29461589,678.85,677.56,0.46842947]
[1748538459718,0.29461589,678.85,677.55,0.358]
[1748538459719,0.29461589,678.85,677.58,0.46842947]
[1748538460216,0.29461589,678.85,677.59,0.46842947]
[1748538460921,0.29461589,678.85,677.55,0.358]
[1748538460922,0.29461589,678.85,677.6,0.46842947]
[1748538462319,0.29461589,678.85,677.58,0.46842947]
[1748538463723,0.29461589,678.85,677.59,0.46842947]
[1748538464324,0.29461589,678.85,677.6,0.46842947]
[1748538464521,0.29461589,678.85,677.59,0.46842947]
[1748538466520,0.29461589,678.85,677.64,0.46842947]
[1748538467224,0.29461589,678.85,677.63,0.46842947]
[1748538467525,0.29461589,678.85,677.64,0.46842947]
[1748538467727,0.29461589,678.85,677.62,0.46842947]
[1748538469522,0.29461589,678.85,677.63,0.46842947]
[1748538470825,0.29461589,678.85,677.55,0.358]
[1748538470826,0.29461589,678.85,677.59,0.46842947]
[1748538471727,0.29461589,678.85,677.55,0.358]
[1748538486232,0.29461589,678.85,677.42,0.46842947]
[1748538486537,0.29461589,678.85,677.41,0.46842947]
[1748538486832,0.29461589,678.85,677.4,0.46842947]
[1748538487236,0.29461589,678.85,677.39,0.46842947]
[1748538487437,0.29461589,678.85,677.4,0.46842947]
[1748538487736,0.29461589,678.85,677.39,0.46842947]
[1748538488233,0.29461589,678.85,677.4,0.36]
[1748538491039,0.29461589,678.85,677.4,0.82910086]
[1748538491439,0.29461589,678.85,677.57,0.46910086]
[1748538493040,0.29461589,678.85,677.58,0.46910086]
[1748538494135,0.29461589,678.85,677.59,0.46910086]
[1748538494435,0.29461589,678.85,677.6,0.46910086]
[1748538494641,0.29461589,678.85,677.59,0.46910086]
[1748538495038,0.29461589,678.85,677.4,0.36]
[1748538495539,0.29461589,678.85,677.75,0.46902142]
[1748538496642,0.29461589,678.85,677.76,0.46902142]
[1748538497042,0.29461589,678.85,677.75,0.46902142]
[1748538499342,0.29461589,678.85,677.52,0.46902142]
[1748538501847,0.29461589,678.85,677.51,0.46902142]
[1748538502048,0.29461589,678.85,677.5,0.46902142]
[1748538502446,0.29461589,678.85,677.49,0.46902142]
[1748538502640,0.29461589,678.85,677.44,0.46902142]
[1748538503345,0.29461589,678.85,677.45,0.46902142]
[1748538503542,0.29461589,678.85,677.44,0.46902142]
[1748538504249,0.29461589,678.85,677.45,0.46902142]
[1748538505247,0.29461589,678.85,677.46,0.46902142]
[1748538505950,0.29461589,678.85,677.45,0.46902142]
[1748538506350,0.29461589,678.85,677.46,0.46902142]
[1748538506551,0.29461589,678.85,677.47,0.46902142]
[1748538506746,0.29461589,678.85,677.63,0.46902142]
[1748538506946,0.29461589,678.85,677.64,0.46902142]
[1748538507545,0.29461589,678.85,677.4,0.36]
[1748538507546,0.29461589,678.85,677.62,0.46902142]
[1748538507749,0.29461589,678.85,677.64,0.46902142]
[1748538509049,0.29461589,678.85,677.4,0.36]
[1748538509050,0.29461589,678.85,677.56,0.46902142]
[1748538509249,0.29461589,678.85,677.57,0.46902142]
[1748538509549,0.29461589,678.85,677.58,0.46902142]
[1748538509848,0.29461589,678.85,677.59,0.46902142]
[1748538510053,0.29461589,678.85,677.6,0.46902142]
[1748538510254,0.29461589,678.85,677.58,0.46902142]
[1748538510453,0.29461589,678.85,677.59,0.46902142]
[1748538511252,0.29461589,678.85,677.58,0.46902142]
[1748538512048,0.29461589,678.85,677.57,0.46902142]
[1748538512353,0.29461589,678.85,677.56,0.46902142]
[1748538513052,0.29461589,678.85,677.58,0.46902142]
[1748538513253,0.29461589,678.85,677.57,0.46902142]
[1748538514154,0.29461589,678.85,677.56,0.46902142]
[1748538515255,0.29461589,678.85,677.55,0.46902142]
[1748538515555,0.29461589,678.85,677.57,0.461]
[1748538518956,0.29461589,678.85,677.66,0.46902142]
[1748538519259,0.29461589,678.85,677.71,0.46902142]
[1748538520556,0.29461589,678.85,677.57,0.461]
[1748538520557,0.29461589,678.85,677.73,0.46902142]
[1748538521458,0.29461589,678.85,677.72,0.46902142]
[1748538522058,0.29461589,678.85,677.77,0.46902142]
[1748538522562,0.29461589,678.85,677.76,0.46902142]
[1748538522764,0.29461589,678.85,677.78,0.46902142]
[1748538523058,0.29461589,678.85,677.71,0.46902142]
[1748538524364,0.29461589,678.85,677.57,0.461]
[1748538528269,0.29461589,678.85,677.61,0.46902142]
[1748538528671,0.29461589,678.85,677.62,0.46902142]
[1748538529065,0.29461589,678.85,677.61,0.46902142]
[1748538530265,0.29461589,678.85,677.6,0.46902142]
[1748538530766,0.29461589,678.85,677.57,0.461]
[1748538530767,0.29461589,678.85,677.61,0.46902142]
[1748538531267,0.29461589,678.85,677.57,0.461]
[1748538531268,0.29461589,678.85,677.6,0.46902142]
[1748538531464,0.29461589,678.85,677.76,0.46902142]
[1748538531665,0.29461589,678.85,677.79,0.46902142]
[1748538533367,0.29461589,678.85,677.77,0.46902142]
[1748538533968,0.29461589,678.85,677.78,0.46902142]
[1748538534274,0.29461589,678.85,677.68,0.46902142]
[1748538534773,0.29461589,678.85,677.69,0.46902142]
[1748538535073,0.29461589,678.85,677.72,0.46902142]
[1748538535274,0.29461589,678.85,677.71,0.46902142]
[1748538535669,0.29461589,678.85,677.72,0.46902142]
[1748538536275,0.29461589,678.85,677.71,0.46902142]
[1748538536476,0.29461589,678.85,677.72,0.46902142]
[1748538536671,0.29461589,678.85,677.71,0.46902142]
[1748538537369,0.29461589,678.85,677.7,0.46902142]
[1748538538274,0.29461589,678.85,677.71,0.46902142]
[1748538538875,0.29461589,678.85,677.72,0.46902142]
[1748538539275,0.29461589,678.85,677.73,0.46902142]
[1748538540172,0.29461589,678.85,677.74,0.46902142]
[1748538540772,0.29461589,678.85,677.72,0.46902142]
[1748538540972,0.29461589,678.85,677.73,0.46902142]
[1748538541172,0.29461589,678.85,677.57,0.461]
[1748538541173,0.29461589,678.85,677.67,0.46902142]
[1748538541376,0.29461589,678.85,677.7,0.46902142]
[1748538541574,0.29461589,678.85,677.65,0.46902142]
[1748538541775,0.29461589,678.85,677.64,0.46902142]
[1748538541979,0.29461589,678.85,677.65,0.46902142]
[1748538542280,0.29461589,678.85,677.66,0.46902142]
[1748538542581,0.29461589,678.85,677.67,0.46902142]
[1748538542880,0.29461589,678.85,677.69,0.46902142]
[1748538543077,0.29461589,678.85,677.68,0.46902142]
[1748538543279,0.29461589,678.85,677.72,0.46902142]
[1748538543476,0.29461589,678.85,677.68,0.46902142]
[1748538544180,0.29461589,678.85,677.66,0.46902142]
[1748538544378,0.29461589,678.85,677.65,0.46902142]
[1748538544882,0.29461589,678.85,677.78,0.46902142]
[1748538545076,0.29461589,678.85,677.66,0.46902142]
[1748538546083,0.29461589,678.85,677.65,0.46902142]
[1748538546382,0.29461589,678.85,677.62,0.46902142]
[1748538546582,0.29461589,678.85,677.63,0.46902142]
[1748538547183,0.29461589,678.85,677.62,0.46902142]
[1748538547477,0.29461589,678.85,677.63,0.46902142]
[1748538548183,0.29461589,678.85,677.66,0.46902142]
[1748538549082,0.29461589,678.85,677.67,0.477]
[1748538549479,0.29461589,678.85,677.67,0.94602142]
[1748538550683,0.29461589,678.85,677.68,0.46902142]
[1748538551587,0.29461589,678.85,677.67,0.477]
[1748538592012,0.29461589,678.85,677.53,0.46797218]
[1748538592514,0.29461589,678.85,677.16,0.46797218]
[1748538592515,0.29461589,678.85,677.54,0.46797218]
[1748538592715,0.29461589,678.85,677.53,0.46797218]
[1748538593010,0.29461589,678.85,677.5,0.46797218]
[1748538593213,0.29461589,678.85,677.42,0.46797218]
[1748538593715,0.29461589,678.85,677.41,0.46797218]
[1748538594010,0.29461589,678.85,677.43,0.339]
[1748538604621,0.29461589,678.85,677.44,0.46797218]
[1748538604927,0.29461589,678.85,677.43,0.339]
[1748538606223,0.29461589,678.85,677.06,0.46797218]
[1748538606523,0.29461589,678.85,677.03,0.46797218]
[1748538606828,0.29461589,678.85,677.18,0.46797218]
[1748538607427,0.29461589,678.85,677.03,0.29540788]
[1748538607428,0.29461589,678.85,677.17,0.46797218]
[1748538607627,0.29461589,678.85,677.18,0.46797218]
[1748538607823,0.29461589,678.85,677.18,0.86397218]
[1748538608323,0.29461589,678.85,677.18,0.396]
[1748538610026,0.29461589,678.85,677.18,0.86397218]
[1748538610227,0.29461589,678.85,677.18,0.396]
[1748538622839,0.29461589,678.85,677.08,0.46797218]
[1748538625438,0.29461589,678.85,677.09,0.463]
[1748538625639,0.29461589,678.85,677.09,0.93097218]
[1748538626437,0.29461589,678.85,677.1,0.46797218]
[1748538627142,0.29461589,678.85,677.12,0.46797218]
[1748538627442,0.29461589,678.85,677.16,0.46797218]
[1748538628643,0.29461589,678.85,677.17,0.46797218]
[1748538629037,0.29461589,678.85,677.14,0.46797218]
[1748538629238,0.29461589,678.85,677.26,0.46797218]
[1748538629846,0.29461589,678.85,677.28,0.46797218]
[1748538631445,0.29461589,678.85,677.29,0.46797218]
[1748538631749,0.29461589,678.85,677.27,0.46797218]
[1748538632248,0.29461589,678.85,677.24,0.46797218]
[1748538632647,0.29461589,678.85,677.25,0.46797218]
[1748538633545,0.29461589,678.85,677.26,0.46797218]
[1748538634249,0.29461589,678.85,677.27,0.46797218]
[1748538634450,0.29461589,678.85,677.32,0.46797218]
[1748538634649,0.29461589,678.85,677.34,0.46797218]
[1748538634846,0.29461589,678.85,677.32,0.46797218]
[1748538635051,0.29461589,678.85,677.33,0.46797218]
[1748538635244,0.29461589,678.85,677.35,0.46797218]
[1748538635448,0.29461589,678.85,677.42,0.46797218]
[1748538635645,0.29461589,678.85,677.43,0.46797218]
[1748538635848,0.29461589,678.85,677.48,0.46797218]
[1748538636151,0.29461589,678.85,677.49,0.46797218]
[1748538636745,0.29461589,678.85,677.51,0.46797218]
[1748538637551,0.29461589,678.85,677.53,0.46797218]
[1748538638153,0.29461589,678.85,677.46,0.46797218]
[1748538638350,0.29461589,678.85,677.3,0.46797218]
[1748538638947,0.29461589,678.85,677.31,0.46797218]
[1748538639151,0.29461589,678.85,677.3,0.46797218]
[1748538641353,0.29461589,678.85,677.29,0.46797218]
[1748538642357,0.29461589,678.85,677.28,0.46797218]
[1748538643459,0.29461589,678.85,677.27,0.46797218]
[1748538644361,0.29461589,678.85,677.26,0.46797218]
[1748538644957,0.29461589,678.85,677.25,0.46797218]
[1748538646360,0.29461589,678.85,677.23,0.46797218]
[1748538646557,0.29461589,678.85,677.24,0.46797218]
[1748538646757,0.29461589,678.85,677.25,0.46797218]
[1748538647056,0.29461589,678.85,677.26,0.46797218]
[1748538647362,0.29461589,678.85,677.23,0.46797218]
[1748538648056,0.29461589,678.85,677.24,0.46797218]
[1748538648258,0.29461589,678.85,677.33,0.46797218]
[1748538648760,0.29461589,678.85,677.34,0.46797218]
[1748538649359,0.29461589,678.85,677.33,0.46797218]
[1748538649957,0.29461589,678.85,677.34,0.46797218]
[1748538650160,0.29461589,678.85,677.37,0.46797218]
[1748538650560,0.29461589,678.85,677.36,0.46797218]
[1748538651361,0.29461589,678.85,677.35,0.46797218]
[1748538651760,0.29461589,678.85,677.36,0.46797218]
[1748538652359,0.29461589,678.85,677.35,0.46797218]
[1748538652960,0.29461589,678.85,677.09,0.463]
[1748538652961,0.29461589,678.85,677.33,0.46797218]
[1748538653865,0.29461589,678.85,677.32,0.46797218]
[1748538654264,0.29461589,678.85,677.09,0.463]
[1748538654265,0.29461589,678.85,677.23,0.46797218]
[1748538654564,0.29461589,678.85,677.09,0.463]
[1748538654767,0.29461589,678.85,677.1,0.29537734]
[1748538661576,0.29461589,678.85,677.19,0.46797218]
[1748538661875,0.29461589,678.85,677.48,0.46797218]
[1748538662076,0.29461589,678.85,677.47,0.46797218]
[1748538662269,0.29461589,678.85,677.29,0.46797218]
[1748538663374,0.29461589,678.85,677.3,0.46797218]
[1748538663575,0.29461589,678.85,677.31,0.46797218]
[1748538664175,0.29461589,678.85,677.3,0.46797218]
[1748538664373,0.29461589,678.85,677.32,0.46797218]
[1748538665171,0.29461589,678.85,677.29,0.46797218]
[1748538665375,0.29461589,678.85,677.34,0.46797218]
[1748538665672,0.29461589,678.85,677.35,0.46797218]
[1748538666176,0.29461589,678.85,677.39,0.46797218]
[1748538666473,0.29461589,678.85,677.2,0.76633372]
[1748538666474,0.29461589,678.85,677.41,0.46797218]
[1748538667475,0.29461589,678.85,677.2,0.76633372]
[1748538667476,0.29461589,678.85,677.42,0.46797218]
[1748538667777,0.29461589,678.85,677.2,0.76633372]
[1748538667778,0.29461589,678.85,677.4,0.46797218]
[1748538668172,0.29461589,678.85,677.46,0.46797218]
[1748538668376,0.29461589,678.85,677.49,0.46797218]
[1748538669374,0.29461589,678.85,677.53,0.46797218]
[1748538669576,0.29461589,678.85,677.56,0.46797218]
[1748538669774,0.29461589,678.85,677.68,0.46797218]
[1748538669973,0.29461589,678.85,677.67,0.46797218]
[1748538670379,0.29461589,678.85,677.7,0.46797218]
[1748538670885,0.29461589,678.85,677.71,0.46797218]
[1748538671280,0.29461589,678.85,677.2,0.76633372]
[1748538671281,0.29461589,678.85,677.78,0.46797218]
[1748538672278,0.29461589,678.85,677.77,0.46797218]
[1748538672477,0.29461589,678.85,677.75,0.46797218]
[1748538672884,0.29461589,678.85,677.77,0.46797218]
[1748538673885,0.29461589,678.85,677.74,0.46797218]
[1748538674183,0.29461589,678.85,677.72,0.46797218]
[1748538674784,0.29461589,678.85,677.71,0.46797218]
[1748538675680,0.29461589,678.85,677.66,0.46797218]
[1748538675883,0.29461589,678.85,677.43,0.46797218]
[1748538676284,0.29461589,678.85,677.44,0.46797218]
[1748538676482,0.29461589,678.85,677.45,0.46797218]
[1748538678384,0.29461589,678.85,677.46,0.46797218]
[1748538679188,0.29461589,678.85,677.45,0.46797218]
[1748538679386,0.29461589,678.85,677.42,0.46797218]
[1748538680091,0.29461589,678.85,677.38,0.46797218]
[1748538680286,0.29461589,678.85,677.2,0.76633372]
[1748538680287,0.29461589,678.85,677.37,0.46797218]
[1748538680491,0.29461589,678.85,677.38,0.46797218]
[1748538680993,0.29461589,678.85,677.37,0.46797218]
[1748538681187,0.29461589,678.85,677.33,0.46797218]
[1748538681389,0.29461589,678.85,677.34,0.46797218]
[1748538683197,0.29461589,678.85,677.35,0.46797218]
[1748538684192,0.29461589,678.85,677.28,0.46797218]
[1748538684393,0.29461589,678.85,677.21,0.46797218]
[1748538684595,0.29461589,678.85,677.2,1.2343059]
[1748538684793,0.29461589,678.85,677.24,0.46797218]
[1748538685296,0.29461589,678.85,677.23,0.46797218]
[1748538685798,0.29461589,678.85,677.21,0.46797218]
[1748538686398,0.29461589,678.85,677.2,0.76633372]
[1748538687499,0.29461589,678.85,677.36,0.46797218]
[1748538687701,0.29461589,678.85,677.39,0.46797218]
[1748538688298,0.29461589,678.85,677.38,0.46797218]
[1748538689603,0.29461589,678.85,677.41,0.46797218]
[1748538691604,0.29461589,678.85,677.4,0.46797218]
[1748538691898,0.29461589,678.85,677.42,0.308]
[1748538692699,0.29461589,678.85,677.42,0.77597218]
[1748538692899,0.29461589,678.85,677.49,0.46797218]
[1748538693805,0.29461589,678.85,677.48,0.46797218]
[1748538694405,0.29461589,678.85,677.49,0.46797218]
[1748538695107,0.29461589,678.85,677.48,0.46797218]
[1748538695805,0.29461589,678.85,677.57,0.46797218]
[1748538696203,0.29461589,678.85,677.58,0.46797218]
[1748538697501,0.29461589,678.85,677.59,0.46797218]
[1748538698207,0.29461589,678.85,677.6,0.46797218]
[1748538699305,0.29461589,678.85,677.54,0.46797218]
[1748538699509,0.29461589,678.85,677.42,0.308]
[1748538699510,0.29461589,678.85,677.55,0.46797218]
[1748538700103,0.29461589,678.85,677.54,0.46797218]
[1748538700505,0.29461589,678.85,677.5,0.46797218]
[1748538702110,0.29461589,678.85,677.53,0.46797218]
[1748538702312,0.29461589,678.85,677.52,0.46797218]
[1748538702712,0.29461589,678.85,677.42,0.308]
[1748538702713,0.29461589,678.85,677.53,0.46797218]
[1748538705610,0.29461589,678.85,677.54,0.339]
[1748538717623,0.29461589,678.85,677.57,0.46797218]
[1748538718020,0.29461589,678.85,677.59,0.46797218]
[1748538718316,0.29461589,678.85,677.54,0.339]
[1748538718317,0.29461589,678.85,677.58,0.46797218]
[1748538718822,0.29461589,678.85,677.64,0.46797218]
[1748538719318,0.29461589,678.85,677.63,0.46797218]
[1748538719623,0.29461589,678.85,677.65,0.46797218]
[1748538720917,0.29461589,678.85,677.66,0.46797218]
[1748538721322,0.29461589,678.85,677.7,0.46797218]
[1748538722224,0.29461589,678.85,677.69,0.46797218]
[1748538723318,0.29461589,678.85,677.68,0.46797218]
[1748538723719,0.29461589,678.85,677.61,0.46797218]
[1748538724022,0.29461589,678.85,677.65,0.46797218]
[1748538724217,0.29461589,678.85,677.2,0.29533372]
[1748538724218,0.29461589,678.85,677.64,0.46797218]
[1748538724616,0.29461589,678.85,677.65,0.453]
[1748538730420,0.29461589,678.85,677.65,0.92097218]
[1748538730725,0.29461589,678.85,677.66,0.46797218]
[1748538730928,0.29461589,678.85,677.7,0.46797218]
[1748538731123,0.29461589,678.85,677.65,0.453]
[1748538737627,0.29461589,678.85,677.34,0.46797218]
[1748538737824,0.29461589,678.85,677.36,0.29526396]
[1748538739330,0.29461589,678.85,677.37,0.334]
[1748538739530,0.29461589,678.85,677.38,0.29525524]
[1748538740931,0.29461589,678.85,677.52,0.46797218]
[1748538741133,0.29461589,678.85,677.51,0.46797218]
[1748538741333,0.29461589,678.85,677.52,0.46797218]
[1748538742535,0.29461589,678.85,677.5,0.46797218]
[1748538743134,0.29461589,678.85,677.42,0.46797218]
[1748538743334,0.29461589,678.85,677.43,0.29523345]
[1748538744234,0.29461589,678.85,677.43,0.76320563]
[1748538744430,0.29461589,678.85,677.43,0.29523345]
[1748538746136,0.29461589,678.85,677.51,0.46797218]
[1748538746331,0.29461589,678.85,677.54,0.46797218]
[1748538746533,0.29461589,678.85,677.53,0.46797218]
[1748538747338,0.29461589,678.85,677.56,0.46797218]
[1748538747739,0.29461589,678.85,677.57,0.46797218]
[1748538748240,0.29461589,678.85,677.58,0.46797218]
[1748538748434,0.29461589,678.85,677.62,0.46797218]
[1748538748638,0.29461589,678.85,677.61,0.46797218]
[1748538748836,0.29461589,678.85,677.62,0.46797218]
[1748538749038,0.29461589,678.85,677.67,0.46797218]
[1748538749238,0.29461589,678.85,677.68,0.46797218]
[1748538749537,0.29461589,678.85,677.69,0.46797218]
[1748538750039,0.29461589,678.85,677.7,0.46797218]
[1748538750232,0.29461589,678.85,677.72,0.46797218]